[Event "Titled Tuesday Blitz November 01 Early 2022"]
[White "Muminova, Nafisa"]
[Black "Guerrero Olmos, Sergio"]
[WhiteFideId "14201526"]
[BlackFideId "2257238"]
[WhiteElo "2258"]
[BlackElo "2272"]
[Result "1-0"]
[Round "03"]
[TimeControl "180+1"]
[Date "2022.11.02"]
[WhiteClock "0:00:25"]
[BlackClock "0:01:47"]

1. e4 {[%clk 0:02:56]}  e6 {[%clk 0:03:00]} 2. d4 {[%clk 0:02:54]}  d5 {[%clk 0:03:00]} 3. e5 {[%clk 0:02:53]}  c5 {[%clk 0:03:00]} 4. c3 {[%clk 0:02:53]}  Nc6 {[%clk 0:03:00]} 5. Nf3 {[%clk 0:02:52]}  Qb6 {[%clk 0:02:59]} 6. a3 {[%clk 0:02:51]}  f6 {[%clk 0:03:00]} 7. b4 {[%clk 0:02:50]}  fxe5 {[%clk 0:02:55]} 8. Nxe5 {[%clk 0:02:50]}  cxd4 {[%clk 0:02:48]} 9. Qh5+ {[%clk 0:02:45]}  g6 {[%clk 0:02:48]} 10. Nxg6 {[%clk 0:02:45]}  Nf6 {[%clk 0:02:48]} 11. Qh4 {[%clk 0:02:38]}  hxg6 {[%clk 0:02:48]} 12. Qxh8 {[%clk 0:02:33]}  Kf7 {[%clk 0:02:47]} 13. Bg5 {[%clk 0:02:27]}  Bg7 {[%clk 0:02:46]} 14. Qh4 {[%clk 0:02:26]}  Ne4 {[%clk 0:02:45]} 15. Bd3 {[%clk 0:02:19]}  dxc3 {[%clk 0:02:40]} 16. O-O {[%clk 0:02:10]}  c2 {[%clk 0:02:34]} 17. Nd2 {[%clk 0:01:55]}  Nxg5 {[%clk 0:02:29]} 18. Qxg5 {[%clk 0:01:49]}  Ne7 {[%clk 0:02:09]} 19. Bxc2 {[%clk 0:01:29]}  Bd7 {[%clk 0:02:09]} 20. Nf3 {[%clk 0:01:18]}  Bf6 {[%clk 0:01:55]} 21. Ne5+ {[%clk 0:01:13]}  Kg7 {[%clk 0:01:51]} 22. Qxf6+ {[%clk 0:01:08]}  Kxf6 {[%clk 0:01:52]} 23. Nxd7+ {[%clk 0:01:08]}  Kf7 {[%clk 0:01:53]} 24. Nxb6 {[%clk 0:01:08]}  axb6 {[%clk 0:01:54]} 25. g4 {[%clk 0:01:00]}  Nc6 {[%clk 0:01:54]} 26. Bd3 {[%clk 0:00:56]}  Ne5 {[%clk 0:01:50]} 27. Be2 {[%clk 0:00:55]}  Rc8 {[%clk 0:01:49]} 28. Rac1 {[%clk 0:00:53]}  Rh8 {[%clk 0:01:48]} 29. Rc7+ {[%clk 0:00:51]}  Kf6 {[%clk 0:01:49]} 30. f4 {[%clk 0:00:49]}  Nc6 {[%clk 0:01:46]} 31. Bd3 {[%clk 0:00:46]}  g5 {[%clk 0:01:46]} 32. fxg5+ {[%clk 0:00:44]}  Kxg5 {[%clk 0:01:46]} 33. Rg7+ {[%clk 0:00:43]}  Kh4 {[%clk 0:01:47]} 34. Kg2 {[%clk 0:00:37]}  Ne5 {[%clk 0:01:47]} 35. Rh7+ {[%clk 0:00:33]}  Rxh7 {[%clk 0:01:45]} 36. Bxh7 {[%clk 0:00:34]}  Nxg4 {[%clk 0:01:46]} 37. Rf4 {[%clk 0:00:29]}  Kg5 {[%clk 0:01:46]} 38. Rxg4+ {[%clk 0:00:28]}  Kxg4 {[%clk 0:01:47]} 39. Bg8 {[%clk 0:00:28]}  Kf5 {[%clk 0:01:47]} 40. Kf3 {[%clk 0:00:28]}  d4 {[%clk 0:01:47]} 41. h4 {[%clk 0:00:26]}  e5 {[%clk 0:01:47]} 42. Bh7+ {[%clk 0:00:26]}  Ke6 {[%clk 0:01:47]} 43. Be4 {[%clk 0:00:26]}  b5 {[%clk 0:01:47]} 44. Bxb7 {[%clk 0:00:25]} 1-0


[Site "https://www.chess.com"]

[Event "Titled Tuesday Blitz November 01 Early 2022"]
[White "Myshakov, Fyodor"]
[Black "Skliarov, Viktor"]
[WhiteFideId "14111284"]
[BlackFideId "14106736"]
[WhiteElo "2310"]
[BlackElo "2284"]
[Result "1/2-1/2"]
[Round "03"]
[TimeControl "180+1"]
[Date "2022.11.02"]
[WhiteClock "0:00:07"]
[BlackClock "0:00:06"]

1. c4 {[%clk 0:02:58]}  e5 {[%clk 0:02:59]} 2. Nc3 {[%clk 0:02:58]}  Bb4 {[%clk 0:02:59]} 3. Nd5 {[%clk 0:02:58]}  Ba5 {[%clk 0:03:00]} 4. b4 {[%clk 0:02:56]}  c6 {[%clk 0:03:00]} 5. bxa5 {[%clk 0:02:52]}  cxd5 {[%clk 0:03:00]} 6. cxd5 {[%clk 0:02:52]}  Qxa5 {[%clk 0:03:01]} 7. e4 {[%clk 0:02:46]}  Nf6 {[%clk 0:03:00]} 8. Bd3 {[%clk 0:02:41]}  b6 {[%clk 0:02:53]} 9. Nf3 {[%clk 0:02:40]}  Ba6 {[%clk 0:02:44]} 10. Nxe5 {[%clk 0:02:17]}  Bxd3 {[%clk 0:01:31]} 11. Nxd3 {[%clk 0:02:16]}  Nxe4 {[%clk 0:01:31]} 12. Qe2 {[%clk 0:02:14]}  Kd8 {[%clk 0:01:31]} 13. Qxe4 {[%clk 0:02:05]}  Re8 {[%clk 0:01:30]} 14. Ne5 {[%clk 0:02:02]}  d6 {[%clk 0:01:25]} 15. Bb2 {[%clk 0:01:32]}  f6 {[%clk 0:01:07]} 16. Bc3 {[%clk 0:01:09]}  Qa6 {[%clk 0:00:30]} 17. Qxh7 {[%clk 0:00:37]}  Nd7 {[%clk 0:00:13]} 18. f4 {[%clk 0:00:31]}  fxe5 {[%clk 0:00:11]} 19. f5 {[%clk 0:00:24]}  Qd3 {[%clk 0:00:06]} 20. Qxg7 {[%clk 0:00:18]}  Rc8 {[%clk 0:00:03]} 21. Qg3 {[%clk 0:00:15]}  Qe4+ {[%clk 0:00:03]} 22. Qe3 {[%clk 0:00:15]}  Qxf5 {[%clk 0:00:03]} 23. Rf1 {[%clk 0:00:14]}  Qh5 {[%clk 0:00:04]} 24. Rc1 {[%clk 0:00:13]}  Qxh2 {[%clk 0:00:04]} 25. Qg5+ {[%clk 0:00:13]}  Re7 {[%clk 0:00:03]} 26. Rf7 {[%clk 0:00:11]}  Nf6 {[%clk 0:00:02]} 27. Qxf6 {[%clk 0:00:10]}  Qg1+ {[%clk 0:00:03]} 28. Ke2 {[%clk 0:00:10]}  Qxg2+ {[%clk 0:00:03]} 29. Kd1 {[%clk 0:00:09]}  Qh1+ {[%clk 0:00:03]} 30. Kc2 {[%clk 0:00:09]}  Qe4+ {[%clk 0:00:03]} 31. Kb2 {[%clk 0:00:09]}  Rc7 {[%clk 0:00:04]} 32. Rf8+ {[%clk 0:00:09]}  Kd7 {[%clk 0:00:04]} 33. Rg1 {[%clk 0:00:08]}  Qxd5 {[%clk 0:00:04]} 34. Qf5+ {[%clk 0:00:09]}  Kc6 {[%clk 0:00:04]} 35. Rc8 {[%clk 0:00:08]}  Qb5+ {[%clk 0:00:04]} 36. Kc2 {[%clk 0:00:08]}  Kb7 {[%clk 0:00:05]} 37. Rxc7+ {[%clk 0:00:08]}  Rxc7 {[%clk 0:00:06]} 38. Qe4+ {[%clk 0:00:09]}  d5 {[%clk 0:00:06]} 39. Qxe5 {[%clk 0:00:09]}  Qa4+ {[%clk 0:00:07]} 40. Kb2 {[%clk 0:00:08]}  Qb5+ {[%clk 0:00:07]} 41. Ka1 {[%clk 0:00:09]}  Qc4 {[%clk 0:00:07]} 42. Rg7 {[%clk 0:00:09]}  Rxg7 {[%clk 0:00:06]} 43. Qxg7+ {[%clk 0:00:09]}  Ka6 {[%clk 0:00:07]} 44. Qd4 {[%clk 0:00:10]}  Qb5 {[%clk 0:00:05]} 45. Qb4 {[%clk 0:00:10]}  Qd3 {[%clk 0:00:05]} 46. Kb2 {[%clk 0:00:09]}  Kb7 {[%clk 0:00:05]} 47. Qd4 {[%clk 0:00:09]}  Qb5+ {[%clk 0:00:05]} 48. Kc2 {[%clk 0:00:10]}  a5 {[%clk 0:00:05]} 49. a4 {[%clk 0:00:09]}  Qc6 {[%clk 0:00:05]} 50. Qg7+ {[%clk 0:00:09]}  Ka6 {[%clk 0:00:06]} 51. Qd4 {[%clk 0:00:09]}  Kb7 {[%clk 0:00:06]} 52. Qg4 {[%clk 0:00:08]}  Ka6 {[%clk 0:00:06]} 53. Qd4 {[%clk 0:00:07]}  Kb7 {[%clk 0:00:06]} 1/2-1/2


[Site "https://www.chess.com"]

[Event "Titled Tuesday Blitz November 01 Early 2022"]
[White "Navara, David"]
[Black "De Souza, Cristiano Gomes"]
[WhiteFideId "309095"]
[BlackFideId "2151758"]
[WhiteElo "2676"]
[BlackElo "2068"]
[Result "1-0"]
[Round "03"]
[TimeControl "180+1"]
[Date "2022.11.02"]
[WhiteClock "0:01:37"]
[BlackClock "0:01:57"]

1. c4 {[%clk 0:03:00]}  e5 {[%clk 0:02:58]} 2. Nc3 {[%clk 0:03:00]}  Nc6 {[%clk 0:02:58]} 3. g3 {[%clk 0:02:59]}  g6 {[%clk 0:02:57]} 4. Bg2 {[%clk 0:02:59]}  Bg7 {[%clk 0:02:57]} 5. d3 {[%clk 0:02:58]}  d6 {[%clk 0:02:57]} 6. Rb1 {[%clk 0:02:57]}  a5 {[%clk 0:02:56]} 7. e3 {[%clk 0:02:54]}  Nf6 {[%clk 0:02:57]} 8. Nge2 {[%clk 0:02:53]}  O-O {[%clk 0:02:56]} 9. O-O {[%clk 0:02:54]}  Bd7 {[%clk 0:02:56]} 10. b3 {[%clk 0:02:45]}  Qc8 {[%clk 0:02:55]} 11. Nd5 {[%clk 0:02:34]}  Nxd5 {[%clk 0:02:53]} 12. cxd5 {[%clk 0:02:35]}  Ne7 {[%clk 0:02:50]} 13. e4 {[%clk 0:02:35]}  Bh3 {[%clk 0:02:48]} 14. f3 {[%clk 0:02:35]}  Bxg2 {[%clk 0:02:48]} 15. Kxg2 {[%clk 0:02:36]}  c6 {[%clk 0:02:44]} 16. dxc6 {[%clk 0:02:34]}  bxc6 {[%clk 0:02:44]} 17. Bg5 {[%clk 0:02:31]}  Qe6 {[%clk 0:02:42]} 18. d4 {[%clk 0:02:22]}  d5 {[%clk 0:02:27]} 19. Bxe7 {[%clk 0:02:12]}  Qxe7 {[%clk 0:02:25]} 20. exd5 {[%clk 0:02:13]}  cxd5 {[%clk 0:02:22]} 21. dxe5 {[%clk 0:02:10]}  Qxe5 {[%clk 0:02:21]} 22. Nf4 {[%clk 0:02:06]}  Rfd8 {[%clk 0:02:17]} 23. Re1 {[%clk 0:02:04]}  Qc3 {[%clk 0:02:15]} 24. Nxd5 {[%clk 0:01:55]}  Qc5 {[%clk 0:02:09]} 25. Rc1 {[%clk 0:01:45]}  Qxd5 {[%clk 0:02:04]} 26. Re8+ {[%clk 0:01:46]}  Bf8 {[%clk 0:02:04]} 27. Qxd5 {[%clk 0:01:46]}  Rxd5 {[%clk 0:02:02]} 28. Rxa8 {[%clk 0:01:46]}  Rd2+ {[%clk 0:02:02]} 29. Kh3 {[%clk 0:01:39]}  Kg7 {[%clk 0:01:57]} 30. Rxa5 {[%clk 0:01:37]} 1-0


[Site "https://www.chess.com"]

[Event "Titled Tuesday Blitz November 01 Early 2022"]
[White "Nurmanova, Alua"]
[Black "Kovalenko, Igor"]
[WhiteFideId "13729390"]
[BlackFideId "14117908"]
[WhiteElo "2088"]
[BlackElo "2574"]
[Result "0-1"]
[Round "03"]
[TimeControl "180+1"]
[Date "2022.11.02"]
[WhiteClock "0:00:04"]
[BlackClock "0:00:49"]

1. e4 {[%clk 0:03:00]}  c5 {[%clk 0:01:53]} 2. Nf3 {[%clk 0:02:54]}  e6 {[%clk 0:01:53]} 3. d4 {[%clk 0:02:55]}  cxd4 {[%clk 0:01:54]} 4. Nxd4 {[%clk 0:02:56]}  a6 {[%clk 0:01:54]} 5. c4 {[%clk 0:02:55]}  Nf6 {[%clk 0:01:54]} 6. Nc3 {[%clk 0:02:55]}  Qc7 {[%clk 0:01:54]} 7. Be2 {[%clk 0:02:54]}  b6 {[%clk 0:01:54]} 8. O-O {[%clk 0:02:50]}  Bb7 {[%clk 0:01:54]} 9. f3 {[%clk 0:02:49]}  d6 {[%clk 0:01:55]} 10. Be3 {[%clk 0:02:48]}  Nbd7 {[%clk 0:01:56]} 11. Rc1 {[%clk 0:02:44]}  Rc8 {[%clk 0:01:56]} 12. b3 {[%clk 0:02:34]}  Be7 {[%clk 0:01:56]} 13. Bd3 {[%clk 0:02:33]}  O-O {[%clk 0:01:53]} 14. Kh1 {[%clk 0:02:26]}  Qb8 {[%clk 0:01:52]} 15. f4 {[%clk 0:02:25]}  Nc5 {[%clk 0:01:52]} 16. Qc2 {[%clk 0:02:18]}  b5 {[%clk 0:01:50]} 17. Nf3 {[%clk 0:01:52]}  b4 {[%clk 0:01:49]} 18. Bxc5 {[%clk 0:01:48]}  Rxc5 {[%clk 0:01:46]} 19. Na4 {[%clk 0:01:41]}  Rh5 {[%clk 0:01:46]} 20. h3 {[%clk 0:01:32]}  Nd7 {[%clk 0:01:35]} 21. Rce1 {[%clk 0:01:23]}  g6 {[%clk 0:01:29]} 22. Qf2 {[%clk 0:01:15]}  Bc6 {[%clk 0:01:28]} 23. Nb2 {[%clk 0:00:59]}  Bf6 {[%clk 0:01:28]} 24. g4 {[%clk 0:00:48]}  Rxh3+ {[%clk 0:01:26]} 25. Kg2 {[%clk 0:00:48]}  Rxf3 {[%clk 0:01:26]} 26. Kxf3 {[%clk 0:00:47]}  Nc5 {[%clk 0:01:26]} 27. Bb1 {[%clk 0:00:44]}  Bc3 {[%clk 0:01:19]} 28. Re2 {[%clk 0:00:31]}  f5 {[%clk 0:01:19]} 29. gxf5 {[%clk 0:00:30]}  exf5 {[%clk 0:01:19]} 30. Kg3 {[%clk 0:00:24]}  fxe4 {[%clk 0:01:10]} 31. Qe3 {[%clk 0:00:20]}  Qd8 {[%clk 0:01:05]} 32. Rh1 {[%clk 0:00:19]}  Qf6 {[%clk 0:01:04]} 33. Nd1 {[%clk 0:00:17]}  Bd4 {[%clk 0:01:04]} 34. Qc1 {[%clk 0:00:17]}  Rf7 {[%clk 0:01:03]} 35. Rf1 {[%clk 0:00:16]}  Qf5 {[%clk 0:00:57]} 36. Ne3 {[%clk 0:00:15]}  Bxe3 {[%clk 0:00:52]} 37. Rxe3 {[%clk 0:00:16]}  Bd7 {[%clk 0:00:52]} 38. Kg2 {[%clk 0:00:07]}  Ne6 {[%clk 0:00:50]} 39. Rg3 {[%clk 0:00:05]}  Nxf4+ {[%clk 0:00:50]} 40. Kh2 {[%clk 0:00:04]}  Qh5+ {[%clk 0:00:49]} 0-1


[Site "https://www.chess.com"]

[Event "Titled Tuesday Blitz November 01 Early 2022"]
[White "Odegov, Artem"]
[Black "Martinez, Shawn"]
[WhiteFideId "34183644"]
[BlackFideId "2039770"]
[WhiteElo "2298"]
[BlackElo "2174"]
[Result "0-1"]
[Round "03"]
[TimeControl "180+1"]
[Date "2022.11.02"]
[WhiteClock "0:00:01"]
[BlackClock "0:00:16"]

1. d4 {[%clk 0:03:00]}  Nf6 {[%clk 0:02:50]} 2. c4 {[%clk 0:02:59]}  g6 {[%clk 0:02:50]} 3. Nc3 {[%clk 0:02:59]}  Bg7 {[%clk 0:02:50]} 4. e4 {[%clk 0:03:00]}  d6 {[%clk 0:02:51]} 5. h3 {[%clk 0:03:01]}  O-O {[%clk 0:02:50]} 6. Be3 {[%clk 0:03:01]}  b6 {[%clk 0:02:50]} 7. Bd3 {[%clk 0:02:58]}  Bb7 {[%clk 0:02:50]} 8. Nge2 {[%clk 0:02:58]}  a6 {[%clk 0:02:50]} 9. a4 {[%clk 0:02:56]}  Nc6 {[%clk 0:02:39]} 10. g4 {[%clk 0:02:53]}  Nb4 {[%clk 0:02:35]} 11. Bb1 {[%clk 0:02:52]}  e6 {[%clk 0:02:32]} 12. f3 {[%clk 0:02:46]}  Nd7 {[%clk 0:02:28]} 13. h4 {[%clk 0:02:34]}  c5 {[%clk 0:02:14]} 14. h5 {[%clk 0:02:20]}  Rc8 {[%clk 0:01:51]} 15. b3 {[%clk 0:02:12]}  cxd4 {[%clk 0:01:46]} 16. Nxd4 {[%clk 0:02:13]}  Nc5 {[%clk 0:01:41]} 17. Ra3 {[%clk 0:00:45]}  d5 {[%clk 0:01:28]} 18. e5 {[%clk 0:00:27]}  Bxe5 {[%clk 0:01:22]} 19. hxg6 {[%clk 0:00:26]}  fxg6 {[%clk 0:01:15]} 20. Qd2 {[%clk 0:00:19]}  dxc4 {[%clk 0:01:00]} 21. bxc4 {[%clk 0:00:16]}  Qf6 {[%clk 0:00:52]} 22. Bg5 {[%clk 0:00:10]}  Qf7 {[%clk 0:00:41]} 23. Nce2 {[%clk 0:00:10]}  Bg7 {[%clk 0:00:32]} 24. Bh6 {[%clk 0:00:10]}  e5 {[%clk 0:00:31]} 25. Bxg7 {[%clk 0:00:09]}  Qxg7 {[%clk 0:00:28]} 26. Nf5 {[%clk 0:00:04]}  gxf5 {[%clk 0:00:26]} 27. Bxf5 {[%clk 0:00:05]}  Rcd8 {[%clk 0:00:25]} 28. Qxb4 {[%clk 0:00:05]}  Rxf5 {[%clk 0:00:23]} 29. gxf5 {[%clk 0:00:05]}  Nd3+ {[%clk 0:00:22]} 30. Kf1 {[%clk 0:00:05]}  Nxb4 {[%clk 0:00:21]} 31. Ra1 {[%clk 0:00:02]}  Kf8 {[%clk 0:00:17]} 32. Rg1 {[%clk 0:00:02]}  Qh6 {[%clk 0:00:17]} 33. Re1 {[%clk 0:00:01]}  Qh3+ {[%clk 0:00:16]} 34. Rg2 {[%clk 0:00:01]}  Qxf3+ {[%clk 0:00:16]} 35. Kg1 {[%clk 0:00:01]}  Qxg2# {[%clk 0:00:16]} 0-1


[Site "https://www.chess.com"]

[Event "Titled Tuesday Blitz November 01 Early 2022"]
[White "Oglaza, Oskar"]
[Black "Alhadad, Mahmoud"]
[WhiteFideId "1194402"]
[BlackFideId "11501863"]
[WhiteElo "2204"]
[BlackElo "1955"]
[Result "1-0"]
[Round "03"]
[TimeControl "180+1"]
[Date "2022.11.02"]
[WhiteClock "0:01:04"]
[BlackClock "0:00:41"]

1. e4 {[%clk 0:03:00]}  d5 {[%clk 0:02:52]} 2. exd5 {[%clk 0:02:48]}  Nf6 {[%clk 0:02:51]} 3. Nc3 {[%clk 0:02:45]}  Nxd5 {[%clk 0:02:50]} 4. Nxd5 {[%clk 0:02:44]}  Qxd5 {[%clk 0:02:50]} 5. Nf3 {[%clk 0:02:45]}  Bg4 {[%clk 0:02:49]} 6. Be2 {[%clk 0:02:45]}  Nc6 {[%clk 0:02:49]} 7. O-O {[%clk 0:02:45]}  O-O-O {[%clk 0:02:48]} 8. h3 {[%clk 0:02:34]}  Bh5 {[%clk 0:02:48]} 9. c4 {[%clk 0:02:32]}  Qd7 {[%clk 0:02:43]} 10. b4 {[%clk 0:02:26]}  Nxb4 {[%clk 0:02:36]} 11. Qb3 {[%clk 0:02:26]}  Nc6 {[%clk 0:02:26]} 12. Rb1 {[%clk 0:02:24]}  b6 {[%clk 0:02:24]} 13. d4 {[%clk 0:02:14]}  Bxf3 {[%clk 0:01:55]} 14. Qxf3 {[%clk 0:02:08]}  e6 {[%clk 0:01:53]} 15. Be3 {[%clk 0:02:04]}  Kb8 {[%clk 0:01:49]} 16. Rfd1 {[%clk 0:02:04]}  Nb4 {[%clk 0:01:39]} 17. Rd2 {[%clk 0:01:16]}  f6 {[%clk 0:01:13]} 18. Rdb2 {[%clk 0:01:15]}  Na6 {[%clk 0:00:48]} 19. c5 {[%clk 0:01:12]}  Qd5 {[%clk 0:00:40]} 20. Qxd5 {[%clk 0:01:04]}  Rxd5 {[%clk 0:00:41]} 21. Bxa6 {[%clk 0:01:04]} 1-0


[Site "https://www.chess.com"]

[Event "Titled Tuesday Blitz November 01 Early 2022"]
[White "Ohanyan, Emin"]
[Black "Ovchinnikov, Vsevolod"]
[WhiteFideId "13312022"]
[BlackFideId "24176842"]
[WhiteElo "2302"]
[BlackElo "2376"]
[Result "0-1"]
[Round "03"]
[TimeControl "180+1"]
[Date "2022.11.02"]
[WhiteClock "0:00:46"]
[BlackClock "0:00:16"]

1. e4 {[%clk 0:03:00]}  g6 {[%clk 0:02:59]} 2. d4 {[%clk 0:02:58]}  Bg7 {[%clk 0:02:59]} 3. Nc3 {[%clk 0:02:58]}  a6 {[%clk 0:03:00]} 4. f4 {[%clk 0:02:58]}  b5 {[%clk 0:03:00]} 5. Nf3 {[%clk 0:02:59]}  d6 {[%clk 0:03:01]} 6. Bd3 {[%clk 0:02:59]}  Nd7 {[%clk 0:03:01]} 7. e5 {[%clk 0:02:59]}  Nh6 {[%clk 0:03:02]} 8. O-O {[%clk 0:02:59]}  Nb6 {[%clk 0:02:59]} 9. Ne4 {[%clk 0:02:59]}  O-O {[%clk 0:02:57]} 10. c3 {[%clk 0:02:59]}  f6 {[%clk 0:02:55]} 11. exf6 {[%clk 0:02:57]}  exf6 {[%clk 0:02:55]} 12. Nf2 {[%clk 0:02:39]}  Re8 {[%clk 0:02:51]} 13. Bd2 {[%clk 0:02:38]}  Bf5 {[%clk 0:02:50]} 14. Qc2 {[%clk 0:02:35]}  Qd7 {[%clk 0:02:49]} 15. Rae1 {[%clk 0:02:34]}  Rxe1 {[%clk 0:02:37]} 16. Rxe1 {[%clk 0:02:35]}  Re8 {[%clk 0:02:37]} 17. h3 {[%clk 0:02:32]}  Rxe1+ {[%clk 0:02:35]} 18. Bxe1 {[%clk 0:02:32]}  Bxd3 {[%clk 0:02:33]} 19. Qxd3 {[%clk 0:02:32]}  Qe6 {[%clk 0:02:32]} 20. Qe4 {[%clk 0:02:28]}  Qxe4 {[%clk 0:02:29]} 21. Nxe4 {[%clk 0:02:29]}  Nf7 {[%clk 0:02:24]} 22. Kf1 {[%clk 0:02:28]}  f5 {[%clk 0:02:24]} 23. Nf2 {[%clk 0:02:26]}  Nd8 {[%clk 0:02:15]} 24. Ke2 {[%clk 0:02:23]}  Ne6 {[%clk 0:02:15]} 25. Bd2 {[%clk 0:02:21]}  Nd5 {[%clk 0:02:09]} 26. g3 {[%clk 0:02:21]}  Kf7 {[%clk 0:02:08]} 27. b3 {[%clk 0:02:20]}  Nb6 {[%clk 0:02:08]} 28. Kd3 {[%clk 0:02:20]}  c5 {[%clk 0:02:01]} 29. Nd1 {[%clk 0:02:17]}  c4+ {[%clk 0:01:55]} 30. Kc2 {[%clk 0:02:17]}  h6 {[%clk 0:01:44]} 31. Ne3 {[%clk 0:02:17]}  Nc7 {[%clk 0:01:45]} 32. Bc1 {[%clk 0:02:10]}  Ncd5 {[%clk 0:01:45]} 33. Nd1 {[%clk 0:02:01]}  Bf6 {[%clk 0:01:43]} 34. Bd2 {[%clk 0:01:52]}  Ke6 {[%clk 0:01:43]} 35. Be1 {[%clk 0:01:52]}  Bd8 {[%clk 0:01:39]} 36. Bf2 {[%clk 0:01:52]}  Nf6 {[%clk 0:01:36]} 37. Ne3 {[%clk 0:01:47]}  Nbd5 {[%clk 0:01:29]} 38. Nd1 {[%clk 0:01:35]}  Ne4 {[%clk 0:01:28]} 39. Be1 {[%clk 0:01:35]}  Be7 {[%clk 0:00:57]} 40. a4 {[%clk 0:01:35]}  Bd8 {[%clk 0:00:40]} 41. Nd2 {[%clk 0:01:26]}  Nxd2 {[%clk 0:00:35]} 42. Bxd2 {[%clk 0:01:27]}  Nb6 {[%clk 0:00:32]} 43. Nb2 {[%clk 0:01:26]}  Kd5 {[%clk 0:00:23]} 44. a5 {[%clk 0:01:15]}  Nd7 {[%clk 0:00:22]} 45. bxc4+ {[%clk 0:01:16]}  bxc4 {[%clk 0:00:23]} 46. Nd1 {[%clk 0:01:17]}  Ke4 {[%clk 0:00:20]} 47. d5 {[%clk 0:01:00]}  Kxd5 {[%clk 0:00:19]} 48. Ne3+ {[%clk 0:01:01]}  Kc5 {[%clk 0:00:19]} 49. Bc1 {[%clk 0:01:01]}  d5 {[%clk 0:00:14]} 50. Ba3+ {[%clk 0:01:00]}  Kc6 {[%clk 0:00:15]} 51. g4 {[%clk 0:01:01]}  fxg4 {[%clk 0:00:13]} 52. hxg4 {[%clk 0:00:59]}  Nf6 {[%clk 0:00:13]} 53. Bf8 {[%clk 0:00:53]}  h5 {[%clk 0:00:13]} 54. g5 {[%clk 0:00:52]}  Ne4 {[%clk 0:00:13]} 55. f5 {[%clk 0:00:46]}  Bxg5 {[%clk 0:00:12]} 56. fxg6 {[%clk 0:00:46]}  Bxe3 {[%clk 0:00:12]} 57. Be7 {[%clk 0:00:42]}  Bh6 {[%clk 0:00:12]} 58. Kd1 {[%clk 0:00:41]}  Bg7 {[%clk 0:00:12]} 59. Ke2 {[%clk 0:00:41]}  Nxc3+ {[%clk 0:00:13]} 60. Kf3 {[%clk 0:00:42]}  Ne4 {[%clk 0:00:14]} 61. Kf4 {[%clk 0:00:42]}  c3 {[%clk 0:00:13]} 62. Kf5 {[%clk 0:00:43]}  c2 {[%clk 0:00:14]} 63. Bg5 {[%clk 0:00:44]}  Nxg5 {[%clk 0:00:13]} 64. Kf4 {[%clk 0:00:43]}  c1=Q+ {[%clk 0:00:14]} 65. Kf5 {[%clk 0:00:44]}  Qc5 {[%clk 0:00:14]} 66. Kf4 {[%clk 0:00:44]}  Qxa5 {[%clk 0:00:15]} 67. Kf5 {[%clk 0:00:45]}  Qc5 {[%clk 0:00:15]} 68. Kf4 {[%clk 0:00:46]}  Qd6+ {[%clk 0:00:16]} 69. Kf5 {[%clk 0:00:46]}  Qf6# {[%clk 0:00:16]} 0-1


[Site "https://www.chess.com"]

[Event "Titled Tuesday Blitz November 01 Early 2022"]
[White "Orlov, Georgi"]
[Black "Fernandez Hernandez, Gerardo"]
[WhiteFideId "2011271"]
[BlackFideId "2207400"]
[WhiteElo "2568"]
[BlackElo "2254"]
[Result "1-0"]
[Round "03"]
[TimeControl "180+1"]
[Date "2022.11.02"]
[WhiteClock "0:00:19"]
[BlackClock "0:00:05"]

1. e4 {[%clk 0:03:00]}  e6 {[%clk 0:02:59]} 2. d4 {[%clk 0:02:59]}  d5 {[%clk 0:02:59]} 3. Nc3 {[%clk 0:02:59]}  Nc6 {[%clk 0:02:59]} 4. Bb5 {[%clk 0:02:55]}  dxe4 {[%clk 0:02:58]} 5. Be3 {[%clk 0:02:34]}  Nf6 {[%clk 0:02:47]} 6. Qd2 {[%clk 0:02:24]}  Bd7 {[%clk 0:02:21]} 7. Nge2 {[%clk 0:02:19]}  a6 {[%clk 0:02:19]} 8. Ba4 {[%clk 0:02:18]}  b5 {[%clk 0:02:14]} 9. Bb3 {[%clk 0:02:18]}  Na5 {[%clk 0:02:14]} 10. Nxe4 {[%clk 0:02:04]}  Nxb3 {[%clk 0:02:00]} 11. Nxf6+ {[%clk 0:02:03]}  Qxf6 {[%clk 0:01:59]} 12. axb3 {[%clk 0:02:04]}  Bc6 {[%clk 0:01:46]} 13. f3 {[%clk 0:02:03]}  Bd6 {[%clk 0:01:34]} 14. Bg5 {[%clk 0:01:51]}  Qg6 {[%clk 0:01:30]} 15. O-O {[%clk 0:01:42]}  Qh5 {[%clk 0:01:14]} 16. Bf4 {[%clk 0:01:41]}  O-O {[%clk 0:01:02]} 17. c4 {[%clk 0:01:39]}  Rfd8 {[%clk 0:00:50]} 18. Qe3 {[%clk 0:01:34]}  Qf5 {[%clk 0:00:18]} 19. Rfc1 {[%clk 0:01:17]}  bxc4 {[%clk 0:00:11]} 20. bxc4 {[%clk 0:01:17]}  Bb7 {[%clk 0:00:11]} 21. Bg3 {[%clk 0:01:15]}  Bxg3 {[%clk 0:00:10]} 22. Nxg3 {[%clk 0:01:05]}  Qf6 {[%clk 0:00:11]} 23. Rd1 {[%clk 0:01:03]}  Rd7 {[%clk 0:00:09]} 24. Rd2 {[%clk 0:01:00]}  Rad8 {[%clk 0:00:09]} 25. Rad1 {[%clk 0:00:59]}  Qe7 {[%clk 0:00:08]} 26. Nh5 {[%clk 0:00:53]}  g6 {[%clk 0:00:07]} 27. Nf4 {[%clk 0:00:51]}  Kg7 {[%clk 0:00:07]} 28. g3 {[%clk 0:00:46]}  Qf6 {[%clk 0:00:06]} 29. h4 {[%clk 0:00:42]}  h5 {[%clk 0:00:06]} 30. b3 {[%clk 0:00:39]}  Qf5 {[%clk 0:00:05]} 31. Kf2 {[%clk 0:00:36]}  Qf6 {[%clk 0:00:05]} 32. Rd3 {[%clk 0:00:35]}  Qf5 {[%clk 0:00:05]} 33. Qe5+ {[%clk 0:00:29]}  Qxe5 {[%clk 0:00:05]} 34. dxe5 {[%clk 0:00:29]}  Rxd3 {[%clk 0:00:05]} 35. Rxd3 {[%clk 0:00:29]}  Rxd3 {[%clk 0:00:06]} 36. Nxd3 {[%clk 0:00:29]}  Kf8 {[%clk 0:00:05]} 37. Ke3 {[%clk 0:00:27]}  Ke7 {[%clk 0:00:05]} 38. Nc5 {[%clk 0:00:27]}  Bc8 {[%clk 0:00:05]} 39. Kf4 {[%clk 0:00:21]}  a5 {[%clk 0:00:05]} 40. Kg5 {[%clk 0:00:19]}  Ke8 {[%clk 0:00:03]} 41. g4 {[%clk 0:00:20]}  Kf8 {[%clk 0:00:04]} 42. gxh5 {[%clk 0:00:19]}  gxh5 {[%clk 0:00:04]} 43. Kxh5 {[%clk 0:00:20]}  Kg7 {[%clk 0:00:05]} 44. Kg5 {[%clk 0:00:20]}  Kh7 {[%clk 0:00:05]} 45. h5 {[%clk 0:00:21]}  Kg7 {[%clk 0:00:05]} 46. h6+ {[%clk 0:00:21]}  Kh7 {[%clk 0:00:05]} 47. Kf6 {[%clk 0:00:21]}  Kxh6 {[%clk 0:00:05]} 48. Kxf7 {[%clk 0:00:21]}  Kg5 {[%clk 0:00:06]} 49. Ke7 {[%clk 0:00:20]}  Kf4 {[%clk 0:00:05]} 50. Kd8 {[%clk 0:00:21]}  Kxe5 {[%clk 0:00:03]} 51. Kxc8 {[%clk 0:00:20]}  Kd6 {[%clk 0:00:04]} 52. Nd3 {[%clk 0:00:18]}  e5 {[%clk 0:00:03]} 53. Kb7 {[%clk 0:00:18]}  Ke6 {[%clk 0:00:01]} 54. Kxc7 {[%clk 0:00:18]}  Kf5 {[%clk 0:00:01]} 55. Kb6 {[%clk 0:00:17]}  e4 {[%clk 0:00:01]} 56. fxe4+ {[%clk 0:00:17]}  Kxe4 {[%clk 0:00:02]} 57. Nc5+ {[%clk 0:00:17]}  Kd4 {[%clk 0:00:03]} 58. Na4 {[%clk 0:00:16]}  Ke5 {[%clk 0:00:02]} 59. Kxa5 {[%clk 0:00:16]}  Kd6 {[%clk 0:00:03]} 60. Kb6 {[%clk 0:00:17]}  Kd7 {[%clk 0:00:03]} 61. Kb7 {[%clk 0:00:17]}  Kd6 {[%clk 0:00:03]} 62. c5+ {[%clk 0:00:18]}  Kd7 {[%clk 0:00:04]} 63. c6+ {[%clk 0:00:18]}  Kd6 {[%clk 0:00:05]} 64. c7 {[%clk 0:00:19]}  Kd5 {[%clk 0:00:05]} 65. c8=Q {[%clk 0:00:19]} 1-0


[Site "https://www.chess.com"]